bitfinex/quotes_ETHUSD_20220215
["timestamp","ask_amount","ask_price","bid_price","bid_amount"]
[1644961553614,0.00283251,3099.6,3099.2,1.6132]
[1644961553812,1.10662,3099.8,3099.2,1.6132]
[1644961554012,4.71683502,3099.9,3099.2,0.8066]
[1644961554212,0.00283251,3099.6,3099.2,0.8066]
[1644961554416,0.00283251,3099.6,3099.3,0.80656]
[1644961554612,0.00283251,3099.6,3099.2,0.8065587]
[1644961554812,0.00283251,3099.6,3099.3,0.80657]
[1644961555011,0.61005502,3100.0,3099.3,0.80657]
[1644961555212,0.61005502,3099.9,3099.3,0.80657]
[1644961555420,0.00283251,3099.6,3099.3,0.80657]
[1644961555617,0.00283251,3099.6,3099.3,1.61314]
[1644961556312,0.80659,3099.9,3099.3,1.61314]
[1644961556515,0.00283248,3099.6,3099.3,1.61314]
[1644961556714,0.00283248,3099.6,3099.3,0.80657]
[1644961557666,0.61005502,3099.9,3099.3,0.80657]
[1644961557859,1.61321,3100.1,3099.3,0.80657]
[1644961557860,0.00283248,3099.6,3099.4,1.6130581]
[1644961558062,0.00283248,3099.6,3099.3,0.80657]
[1644961558663,0.61005502,3100.1,3099.3,0.80657]
[1644961559063,0.00283248,3099.6,3099.3,0.80657]
[1644961559866,0.8066,3099.8,3099.3,0.80657]
[1644961560063,0.8066,3099.8,3099.2,2.56666435]
[1644961560263,0.00283248,3099.6,3099.2,2.56666435]
[1644961560668,0.00283248,3099.6,3099.3,0.80657]
[1644961561110,0.80662,3099.7,3099.0,1.6132501]
[1644961561312,0.00283248,3099.6,3099.0,1.6132501]
[1644961561509,0.00283248,3099.6,3099.1,3.25298789]
[1644961561709,0.00283248,3099.6,3098.9,3.74444101]
[1644961562108,0.00283248,3099.6,3099.2,0.80664]
[1644961562313,0.61005502,3100.1,3099.2,0.80664]
[1644961562509,0.00283255,3099.5,3099.2,0.80664]
[1644961562709,0.00283255,3099.5,3098.9,0.462]
[1644961563110,0.00283255,3099.5,3099.1,0.80667]
[1644961563315,0.00283255,3099.5,3099.2,3.25521148]
[1644961563511,1.81415502,3100.2,3099.1,0.80667]
[1644961563813,0.00283257,3099.5,3099.2,0.45203]
[1644961564413,0.00283257,3099.5,3099.2,2.06516]
[1644961564610,0.80653,3100.0,3099.2,2.87173]
[1644961564867,0.80653,3100.0,3099.4,0.8065284]
[1644961565067,0.00283254,3099.5,3099.4,0.8065284]
[1644961566068,0.00474531,3099.9,3099.3,1.61304]
[1644961566270,1.61791531,3100.1,3099.3,2.07504]
[1644961566471,2.22797033,3100.1,3099.3,2.07504]
[1644961567474,0.8066,3099.9,3099.3,2.07504]
[1644961567678,0.00474531,3099.8,3099.3,2.07504]
[1644961568072,0.61480033,3100.0,3099.3,2.07504]
[1644961568513,0.80658,3099.9,3099.3,2.07504]
[1644961568710,0.00474531,3099.8,3099.3,2.07504]
[1644961568909,0.81133531,3100.0,3099.3,2.07504]
[1644961570012,0.80659,3099.8,3099.3,0.462]
[1644961570209,0.00474531,3099.7,3099.3,0.462]
[1644961570716,2.4199,3099.9,3099.3,0.462]
[1644961570717,0.40893121,3099.6,3099.3,0.462]
[1644961570914,0.41367652,3099.5,3099.3,0.462]
[1644961571116,0.40893121,3099.4,3099.3,0.462]
[1644961571812,0.40893121,3099.9,3099.3,0.462]
[1644961572012,0.41367652,3099.8,3099.3,1.2686]
[1644961572258,0.00283261,3099.5,3099.3,1.2686]
[1644961572661,0.00757792,3099.5,3099.3,1.2686]
[1644961572867,0.40893121,3099.4,3099.3,1.2686]
[1644961573061,0.40893121,3099.4,3099.3,0.462]
[1644961573260,0.40893121,3099.4,3099.3,0.46016947]
[1644961573459,0.00283258,3099.6,3099.3,0.46016947]
[1644961573663,0.00283258,3099.6,3099.3,3.74141947]
[1644961573861,0.41176379,3099.6,3099.3,5.35449677]
[1644961574061,0.40893121,3099.5,3099.3,6.16107677]
[1644961574459,0.40893121,3099.5,3099.4,3.29985416]
[1644961574662,0.40893121,3099.5,3099.4,4.71509148]
[1644961575061,0.00757786,3099.6,3099.4,6.32805148]
[1644961575360,0.00757786,3099.6,3099.5,4.41540992]
[1644961575361,0.00283255,3099.6,3099.5,4.41540992]
[1644961575562,0.4088353,3100.0,3099.5,4.41540992]
[1644961575761,0.00283252,3099.7,3099.5,1.61301]
[1644961576017,0.00283252,3099.7,3099.6,3.30929827]
[1644961576223,0.00283252,3099.7,3099.6,5.53123872]
[1644961576419,0.00757783,3099.7,3099.6,5.53123872]
[1644961576611,0.00283252,3099.7,3099.6,5.53123872]
[1644961576812,0.00474531,3100.1,3099.6,6.41073788]
[1644961577010,0.00283243,3099.8,3099.6,5.75729753]
[1644961577311,0.00283243,3099.8,3099.7,4.18599218]
[1644961577511,0.00283243,3099.8,3099.7,2.22145511]
[1644961577912,0.00474531,3100.1,3099.7,2.22145511]
[1644961578111,0.00283237,3099.9,3099.8,1.75939961]
[1644961578310,0.00283237,3099.9,3099.8,2.22139961]
[1644961579111,0.00474531,3100.1,3099.9,0.80638]
[1644961579314,0.00474531,3100.5,3100.0,0.8063742]
[1644961579511,0.40871423,3100.4,3100.0,2.4190942]
[1644961579769,0.40871423,3100.4,3100.1,1.41477107]
[1644961579961,0.41345954,3100.3,3100.2,0.95277107]
[1644961580165,0.40892013,3100.3,3100.2,1.41477107]
[1644961580360,0.40890757,3100.9,3100.2,1.41514502]
[1644961580575,0.00283206,3100.4,3100.1,1.21927458]
[1644961580765,0.00283206,3100.4,3100.2,0.462]
[1644961581369,0.41173963,3100.4,3100.2,0.462]
[1644961581562,0.00474531,3100.4,3100.3,1.61257]
[1644961581862,0.00283203,3100.5,3100.3,1.2683]
[1644961582761,0.39284094,3100.7,3100.4,0.80628]
[1644961582961,0.40041822,3100.6,3100.5,0.8062707]
[1644961583161,0.39567291,3100.6,3100.5,0.8062707]
[1644961583612,0.00283197,3100.6,3100.5,0.8062707]
[1644961583814,0.00474531,3100.8,3100.5,0.8062707]
[1644961584121,0.39567282,3100.7,3100.5,2.4187807]
[1644961584614,0.39284094,3100.6,3100.5,2.4187807]
[1644961584814,0.39284094,3100.6,3100.5,1.6125207]
[1644961585016,0.39284094,3100.9,3100.5,1.6125207]
[1644961585216,0.39758625,3100.8,3100.5,1.6125207]
[1644961585423,0.39567282,3100.7,3100.5,2.4187807]
[1644961585617,0.39284094,3100.6,3100.5,2.4187807]
[1644961585818,0.39567282,3100.7,3100.5,1.6125207]
[1644961586116,0.39284094,3100.6,3100.5,1.6125207]
[1644961586516,0.00283185,3100.8,3100.6,0.8062095]
[1644961586722,0.00283185,3100.8,3100.6,1.6124095]
[1644961586917,0.00283185,3100.8,3100.7,3.28319295]
[1644961587119,0.00283185,3100.8,3100.7,0.462]
[1644961587365,0.39666418,3100.8,3100.7,1.462]
[1644961587563,0.39383233,3100.8,3100.7,0.462]
[1644961587760,0.39383233,3100.8,3100.7,3.01305057]
[1644961587959,0.00283176,3100.9,3100.7,2.01305057]
[1644961588161,0.00283176,3100.9,3100.7,3.01305057]
[1644961588360,0.00283176,3100.9,3100.7,2.01305057]
[1644961588560,0.00757707,3100.9,3100.8,1.0]
[1644961588761,0.39857764,3100.9,3100.8,1.0]
[1644961588961,0.39383233,3100.9,3100.7,3.01305057]
[1644961589163,0.00474531,3100.9,3100.7,2.01305057]
[1644961589367,0.00283173,3101.0,3100.7,2.01305057]
[1644961589368,0.393802,3100.8,3100.7,2.01305057]
[1644961589562,0.00283173,3101.0,3100.7,2.01305057]
[1644961589962,0.39854731,3101.0,3100.7,2.01305057]
[1644961590162,0.393802,3100.9,3100.7,2.01305057]
[1644961590461,0.393802,3100.8,3100.7,2.01305057]
[1644961590663,0.393802,3100.8,3100.7,3.01305057]
[1644961591113,0.393802,3101.3,3100.7,2.01305057]
[1644961591315,0.39854731,3101.2,3100.7,2.01305057]
[1644961591510,0.00283176,3100.9,3100.7,2.01305057]
[1644961591919,0.40137907,3100.9,3100.7,2.81924167]
[1644961592111,0.393802,3100.8,3100.7,2.81924167]
[1644961592716,0.00283173,3101.0,3100.7,2.81924167]
[1644961592917,0.00283173,3101.0,3100.8,1.8062]
[1644961593313,0.00283173,3101.0,3100.8,0.8062]
[1644961593514,0.39854731,3101.0,3100.8,0.8062]
[1644961593712,0.393802,3100.9,3100.8,0.8062]
[1644961593914,0.393802,3100.9,3100.7,1.26826]
[1644961594112,0.393802,3100.8,3100.7,1.26826]
[1644961594764,0.393802,3100.8,3100.7,0.462]
[1644961595068,0.00283176,3100.9,3100.6,1.0]
[1644961595372,0.00474531,3100.8,3100.7,0.80626]
[1644961595564,0.00283176,3100.9,3100.7,0.80626]
[1644961595768,0.00757707,3100.9,3100.7,0.80626]
[1644961595964,0.393802,3100.8,3100.7,0.80626]
[1644961596364,0.00283173,3101.0,3100.7,0.80626]
[1644961596966,0.00283173,3101.0,3100.5,0.8063]
[1644961596967,0.00757704,3101.0,3100.5,0.8063]
[1644961597171,0.393802,3100.9,3100.5,0.8063]
[1644961597565,0.00474531,3100.8,3100.5,0.8063]
[1644961597765,0.393802,3100.7,3100.5,0.8063]
[1644961597968,0.393802,3100.6,3100.5,0.8063]
[1644961598165,0.393802,3100.6,3100.4,1.61254]
[1644961598511,0.00474531,3100.5,3100.4,1.61253]
[1644961598714,0.00474531,3100.6,3100.4,1.61253]
[1644961598912,0.00283188,3100.7,3100.4,1.61253]
[1644961599315,0.00283188,3100.7,3100.4,0.80627]
[1644961599511,0.00474531,3100.9,3100.4,0.80627]
[1644961599512,0.39345985,3100.8,3100.4,0.80627]
[1644961599716,0.00283188,3100.7,3100.4,2.4188458]
[1644961599913,0.40103704,3100.7,3100.4,1.61254]
[1644961600114,0.40103704,3100.7,3100.3,2.61255]
[1644961600115,0.39345985,3100.6,3100.3,2.61255]
[1644961600313,0.39345985,3100.5,3100.3,2.61255]
[1644961600717,0.39345985,3100.5,3100.3,1.14668915]
[1644961600914,0.39345985,3100.5,3100.3,0.14668915]
[1644961601413,0.39345985,3100.5,3100.3,0.95299915]
[1644961601813,0.39345985,3100.5,3100.3,1.95299915]
[1644961602116,0.39345985,3100.5,3100.3,0.95299915]
[1644961602374,0.39345985,3100.5,3100.3,2.75928915]
[1644961602571,0.39345985,3100.5,3100.3,1.75928915]
[1644961602768,0.39345985,3100.5,3100.4,1.0]
[1644961602965,0.39345985,3100.5,3100.3,3.56559905]
[1644961610066,0.00757728,3100.6,3100.4,0.99455838]
[1644961610263,0.00474531,3101.1,3100.5,0.8062109]
[1644961610463,0.36757551,3101.0,3100.4,5.0310317]
[1644961610767,0.00283197,3100.6,3100.5,0.99460671]
[1644961610963,0.00283197,3100.6,3100.4,5.0310317]
[1644961611363,0.00757728,3100.6,3100.5,5.1124046]
[1644961611663,0.36757551,3100.6,3100.5,5.1124046]
[1644961611863,0.36757551,3100.6,3100.5,6.1124046]
[1644961612063,0.00283191,3100.7,3100.5,7.10739328]
[1644961612264,0.00283191,3100.7,3100.6,1.0]
[1644961612465,0.00283191,3100.7,3100.6,1.80622]
[1644961612672,0.36757551,3100.9,3100.6,1.80622]
[1644961612865,0.37232082,3100.8,3100.7,4.30621]
[1644961613065,0.37040733,3100.8,3100.7,4.30621]
[1644961613270,0.37040733,3100.8,3100.7,5.30621]
[1644961613711,0.00283182,3100.8,3100.7,5.30621]
[1644961613912,0.00474531,3101.0,3100.7,5.30621]
[1644961614112,0.37040727,3100.9,3100.8,0.80625]
[1644961614312,0.37040727,3100.9,3100.7,4.3062257]
[1644961614512,0.36757551,3100.8,3100.7,4.3062257]
[1644961614913,0.36757551,3100.8,3100.7,5.3062257]
[1644961615113,0.36757551,3101.1,3100.7,5.3062257]
[1644961615318,0.00283176,3100.9,3100.8,0.80621]
[1644961615518,0.00283176,3100.9,3100.7,6.1124357]
[1644961615716,0.37040727,3100.9,3100.7,6.1124357]
[1644961615913,0.36757551,3100.8,3100.7,6.1124357]
[1644961616113,0.36757551,3100.8,3100.7,5.3062257]
[1644961616314,0.36757551,3101.1,3100.7,5.3062257]
[1644961616518,0.00283176,3100.9,3100.7,5.3062257]
[1644961616714,0.00283176,3100.9,3100.8,0.8062082]
[1644961616913,0.37040727,3100.9,3100.8,0.8062082]
[1644961617562,0.36757551,3100.9,3100.7,0.80623]
[1644961617762,0.36757551,3100.8,3100.7,0.80623]
[1644961617971,0.36757551,3100.8,3100.6,0.80624]
[1644961618163,0.36757551,3100.7,3100.5,1.8062255]
[1644961618365,0.36757551,3100.7,3100.6,0.99669157]
[1644961618566,0.36757551,3100.7,3100.6,1.80292157]
[1644961619267,0.36757551,3100.7,3100.6,2.80292157]
[1644961620768,0.36757551,3100.7,3100.6,1.80623]
[1644961621014,0.36757551,3100.7,3100.6,1.0]
[1644961621421,0.36757551,3100.7,3100.6,1.99784691]
[1644961621615,0.36757551,3100.7,3100.6,1.0]
[1644961621816,0.36757551,3100.7,3100.6,1.99858916]
[1644961622117,0.36757551,3100.7,3100.6,1.99854631]
[1644961622316,0.36757551,3100.7,3100.5,1.0]
[1644961622514,0.36757551,3100.7,3100.6,0.99854908]
[1644961622716,0.36757551,3100.7,3100.6,0.99858945]
[1644961622916,0.36757551,3100.7,3100.4,0.99871826]
[1644961623122,0.36757551,3100.7,3100.1,1.146]
[1644961623317,0.37232082,3100.6,3100.2,4.49875361]
[1644961623517,0.61288684,3100.8,3100.2,3.5]
[1644961623518,0.36757551,3100.5,3100.2,3.5]
[1644961623719,0.36757551,3100.5,3100.3,0.99924097]
[1644961623720,0.61480033,3100.5,3100.3,0.99924097]
[1644961623916,0.61480033,3100.5,3099.5,2.58588567]
[1644961624122,0.54321342,3099.9,3099.6,1.80568912]
[1644961624317,0.36757551,3099.8,3099.7,0.99923912]
[1644961625088,0.36757551,3099.8,3099.7,1.99923912]
[1644961626789,0.36757551,3099.8,3099.7,2.80567912]
[1644961627190,0.36757551,3099.8,3099.7,1.80567912]
[1644961627388,0.36757551,3099.8,3099.7,1.99923912]
[1644961628818,0.36757551,3099.8,3099.7,2.80568912]
[1644961629019,0.36757551,3099.8,3099.7,1.99923912]
[1644961632567,0.36757551,3099.8,3099.7,0.99923912]
[1644961636015,0.35841441,3099.8,3099.7,0.99923912]
[1644961636814,0.35841441,3099.8,3099.7,1.80568912]
[1644961637919,0.35841441,3099.8,3099.7,0.99923912]
[1644961643188,0.35841441,3099.8,3099.7,1.99923912]
[1644961648170,0.35841441,3099.8,3099.7,0.99923912]
[1644961648171,3.51454675,3099.8,3099.7,0.99923912]
[1644961648469,0.9821571,3099.5,3099.3,1.61316]
[1644961650671,0.9821571,3099.5,3099.3,2.61316]
[1644961650871,0.9821571,3099.5,3099.4,0.72424067]
[1644961652321,0.57278532,3099.5,3099.4,0.72424067]
[1644961655969,0.57278532,3099.5,3099.4,1.73256771]
[1644961656368,0.92796502,3099.5,3099.4,1.73256771]
[1644961656967,0.92796502,3099.5,3099.4,2.53909771]
[1644961657769,0.92796502,3099.5,3099.4,1.81485704]
[1644961663369,0.92796502,3099.5,3099.4,1.00832704]
[1644961664371,0.92796502,3099.5,3099.4,2.00832704]
[1644961665872,0.92796502,3099.5,3099.4,2.81485704]
[1644961667720,0.92796502,3099.5,3099.4,2.00832704]
[1644961667922,0.92796502,3099.5,3099.4,1.00832704]
[1644961668522,0.92796502,3099.5,3099.4,1.01127443]
[1644961668721,0.92796502,3099.5,3099.3,1.61316]
[1644961668924,0.3551797,3099.4,3099.3,2.61316]
[1644961669122,0.3551797,3099.4,3099.3,3.62434607]
[1644961669771,0.3551797,3099.4,3099.3,3.92434607]
[1644961672381,0.3551797,3099.4,3099.3,4.73090607]
[1644961673172,0.3551797,3099.4,3099.3,3.92434607]
[1644961676424,0.3551797,3099.4,3099.3,2.62434607]
[1644961677310,0.35643323,3099.4,3099.3,2.62434607]
[1644961677507,0.57278532,3099.5,3099.3,2.62434607]
[1644961677709,0.57278532,3099.5,3099.4,1.31132693]
[1644961677913,0.93208572,3099.5,3099.4,1.31132693]
[1644961678111,0.93208572,3099.5,3099.4,1.31139408]
[1644961678306,0.93208572,3099.5,3099.4,1.31139317]
[1644961678707,0.92924915,3099.5,3099.4,1.31139317]
[1644961679709,0.57278532,3099.5,3099.4,6.27339317]
[1644961679909,0.57143674,3099.5,3099.4,3.54978984]
[1644961680111,0.57143674,3099.5,3099.4,2.77339317]
[1644961680709,0.57143674,3099.5,3099.4,3.57991317]
[1644961680710,0.92033696,3099.5,3099.4,3.57991317]
[1644961683422,0.92033696,3099.5,3099.4,6.93627281]
[1644961684221,0.92033696,3099.5,3099.4,3.57991317]
[1644961685375,0.92033696,3099.5,3099.4,6.86831885]
[1644961686174,0.92033696,3099.5,3099.4,3.57991317]
[1644961688274,0.92033696,3099.5,3099.4,2.77339317]
[1644961689729,0.57143674,3099.5,3099.4,3.57991317]
[1644961689926,0.92303104,3099.5,3099.4,3.57991317]
[1644961690127,0.92303104,3099.5,3099.4,6.81238563]
[1644961690329,0.92303104,3099.5,3099.4,1.47339317]
[1644961691128,0.92303104,3099.5,3099.4,2.27989317]
[1644961693875,0.92303104,3099.5,3099.4,2.57989317]
[1644961694075,0.92303104,3099.5,3099.4,3.57989317]
[1644961695375,0.92303104,3099.5,3099.4,6.95992059]
[1644961695577,0.92303104,3099.5,3099.4,1.01139317]
[1644961697026,1.72971104,3099.5,3099.4,1.01139317]
[1644961697424,1.72971104,3099.5,3099.4,0.96139317]
[1644961699529,0.92303104,3099.5,3099.4,0.96139317]
[1644961699973,0.92303104,3099.5,3099.3,1.61316]
[1644961700167,0.57143674,3099.5,3099.3,0.25070688]
[1644961703828,0.57143674,3099.5,3099.3,0.55070688]
[1644961705927,0.53478884,3099.5,3099.3,0.25070688]
[1644961706126,0.52745926,3099.5,3099.3,0.25070688]
[1644961709274,0.52745926,3099.5,3099.3,1.86379868]
[1644961709472,0.52745926,3099.5,3099.3,1.05725688]
[1644961710075,0.52745926,3099.5,3099.3,0.55070688]
[1644961710273,0.52745926,3099.5,3099.3,2.35724658]
[1644961712328,0.52745926,3099.5,3099.4,0.80652]
[1644961714133,0.52745926,3099.5,3099.3,2.35724658]
[1644961714329,0.52745926,3099.5,3099.3,3.16378658]
[1644961714528,0.52745926,3099.5,3099.3,2.35724658]
[1644961715381,0.52745926,3099.5,3099.3,3.16379658]
[1644961715577,0.52745926,3099.5,3099.3,1.55070688]
[1644961715778,0.52745926,3099.5,3099.3,0.25070688]
[1644961717580,0.33398084,3099.4,3099.3,0.25070688]
[1644961717781,0.33398084,3099.4,3099.3,1.58453812]
[1644961718828,0.33398084,3099.4,3099.3,2.39105812]
[1644961720323,0.53006592,3099.5,3099.4,0.80652]
[1644961720527,0.8641203,3099.5,3099.4,1.84035124]
[1644961720725,0.86412049,3099.5,3099.4,1.84035124]
[1644961720930,0.52745926,3099.5,3099.4,1.84035124]
[1644961721124,0.86152058,3099.5,3099.4,1.84035124]
[1644961721325,0.52745926,3099.5,3099.4,1.84035124]
[1644961721726,0.86154073,3099.5,3099.4,1.84035124]
[1644961721933,0.52745926,3099.5,3099.4,1.84035124]
[1644961722126,0.8615837,3099.5,3099.4,1.84035124]
[1644961722376,0.52745926,3099.5,3099.4,1.84035124]
[1644961722772,0.86157174,3099.5,3099.4,1.03383124]
[1644961722974,0.52745926,3099.5,3099.4,1.03383124]
[1644961723376,0.86156647,3099.5,3099.4,1.03383124]
[1644961723575,0.52745926,3099.5,3099.4,1.03383124]
[1644961723777,0.86156901,3099.5,3099.4,1.03383124]
[1644961724075,0.70019211,3099.5,3099.4,1.03383124]
[1644961724276,0.36901692,3099.5,3099.4,1.03383124]
[1644961724481,0.70017576,3099.5,3099.4,1.03383124]
[1644961724876,0.36901692,3099.5,3099.4,1.03383124]
[1644961725078,0.7001964,3099.5,3099.4,1.03383124]
[1644961725279,0.70021139,3099.5,3099.4,1.03383124]
[1644961725479,0.70020212,3099.5,3099.4,1.03383124]
[1644961725779,0.70019558,3099.5,3099.4,1.03383124]
[1644961726625,0.70019558,3099.5,3099.4,1.03018224]
[1644961740581,0.70019558,3099.5,3099.4,1.33018224]
[1644961740784,0.70019558,3099.5,3099.4,1.03018224]
[1644961741626,0.25218198,3099.3,3099.2,1.61696075]
[1644961741827,0.25218198,3099.3,3099.2,5.11696075]
[1644961742131,0.25218198,3099.3,3099.2,4.31027075]
[1644961742438,0.25218198,3099.3,3099.2,4.30657]
[1644961744027,0.25218198,3099.3,3099.2,0.80657]
[1644961745080,6.5,3099.2,3098.5,1.42284237]
[1644961745288,1.08456383,3098.8,3098.4,0.61608567]
[1644961745480,2.17916383,3098.8,3098.5,3.5]
[1644961745681,2.17916383,3098.8,3098.6,0.80695]
[1644961746381,2.98601383,3098.8,3098.6,0.80695]
[1644961746581,2.98601383,3098.8,3098.7,1.04516313]
[1644961746781,2.50250125,3098.8,3098.7,1.04516313]
[1644961747180,1.41793742,3098.8,3098.7,1.04516313]
[1644961748528,0.32333742,3098.8,3098.7,1.04516313]
[1644961748931,1.38748198,3099.3,3098.7,1.85186313]
[1644961749230,0.32303222,3099.2,3098.8,1.04516313]
[1644961749830,0.32303222,3099.2,3098.8,1.85182313]
[1644961750033,0.32303222,3099.2,3098.9,1.04516313]
[1644961750933,0.32303222,3099.2,3098.9,1.85187313]
[1644961751129,0.32303222,3099.2,3098.9,2.65858313]
[1644961751336,0.32303222,3099.2,3099.0,1.04516313]
[1644961752986,0.32303222,3099.2,3099.1,0.462]
[1644961753181,0.32303222,3099.2,3099.1,1.50716313]
[1644961753580,0.25218198,3099.3,3099.1,2.31372313]
[1644961753780,0.25218198,3099.3,3099.2,1.85169313]
[1644961753980,0.57502711,3099.3,3099.2,1.85169313]
[1644961755181,0.57502711,3099.3,3099.2,1.04516313]
[1644961756626,0.57501829,3099.3,3099.2,1.04321447]
[1644961758730,0.25218198,3099.3,3099.2,1.04321447]
[1644961758929,0.57499695,3099.3,3099.2,1.04321447]
[1644961759776,0.57499695,3099.3,3099.2,1.34321447]
[1644961760378,0.5749732,3099.3,3099.2,0.3]
[1644961760580,0.5749732,3099.3,3099.2,1.34318017]
[1644961761781,0.5749732,3099.3,3099.2,1.34324812]
[1644961761981,0.5749732,3099.3,3099.2,0.3]
[1644961762181,0.5749732,3099.3,3099.2,1.3432426]
[1644961762382,0.5749732,3099.3,3099.2,0.3]
[1644961762784,0.5749732,3099.3,3099.2,1.34320745]
[1644961762984,0.5749732,3099.3,3099.2,0.3]
[1644961763388,0.5749732,3099.3,3099.2,1.34323354]
[1644961763631,0.5749732,3099.3,3099.2,1.34323653]
[1644961763833,0.5749732,3099.3,3099.2,1.34330695]
[1644961764027,0.5749732,3099.3,3099.2,0.3]
[1644961764228,0.5749732,3099.3,3099.2,1.34337017]
[1644961764430,0.5749732,3099.3,3099.2,0.3]
[1644961764630,0.5749732,3099.3,3099.2,1.34337122]
[1644961764834,0.5749732,3099.3,3099.2,1.34337753]
[1644961765030,0.5749732,3099.3,3099.2,1.3433762]
[1644961765230,0.5749732,3099.3,3099.2,0.3]
[1644961765434,0.5749732,3099.3,3099.2,1.34334424]
[1644961765636,0.5749732,3099.3,3099.2,1.34334431]
[1644961765834,0.5749732,3099.3,3099.1,0.00368237]
[1644961766044,0.32278746,3099.2,3099.1,0.00368237]
[1644961766232,0.32278746,3099.2,3099.1,0.81039237]
[1644961766438,0.32278746,3099.2,3099.1,0.00368237]
[1644961766934,0.32278746,3099.2,3099.1,1.04707072]
[1644961767134,0.32278746,3099.2,3099.1,0.00368237]
[1644961767379,0.32278746,3099.2,3099.1,1.04718418]
[1644961767578,0.32278746,3099.2,3099.1,0.00368237]
[1644961767780,0.32278746,3099.2,3099.1,1.04718387]
[1644961767979,0.32278746,3099.2,3099.1,0.00368237]
[1644961768177,0.32278746,3099.2,3099.1,1.04722757]
[1644961768380,0.32278746,3099.2,3099.1,1.04722752]
[1644961768589,0.32278746,3099.2,3099.1,0.00368237]
[1644961768780,1.12952746,3099.2,3099.1,1.04295346]
[1644961768981,1.12952746,3099.2,3099.1,0.00368237]
[1644961769980,0.32278746,3099.2,3099.1,0.00368237]
[1644961770381,0.32278746,3099.2,3099.1,1.04738224]
[1644961770580,0.32278746,3099.2,3099.1,0.00368237]
[1644961770778,0.32278746,3099.2,3099.1,1.04734954]
[1644961771032,0.32278746,3099.2,3099.1,0.00368237]
[1644961771229,0.32278746,3099.2,3099.1,1.04737739]
[1644961771428,0.32278746,3099.2,3099.1,0.00368237]
[1644961771627,0.32278746,3099.2,3099.1,1.04737715]
[1644961771829,0.32278746,3099.2,3099.1,0.00368237]
[1644961772227,0.32278746,3099.2,3099.1,1.04741014]
[1644961772429,0.32278746,3099.2,3099.1,0.00368237]
[1644961772628,4.26475968,3099.2,3099.1,1.04740853]
[1644961772828,4.26475968,3099.2,3099.1,0.00368237]
[1644961773228,4.26475968,3099.2,3099.1,1.04750257]
[1644961773430,4.26475968,3099.2,3099.1,0.00368237]
[1644961773630,4.26475968,3099.2,3099.1,1.04750908]
[1644961773837,4.26475968,3099.2,3099.1,0.00368237]
[1644961774032,4.26475968,3099.2,3099.1,1.04750884]
[1644961774236,4.26475968,3099.2,3099.1,0.00368237]
[1644961774432,4.26475968,3099.2,3099.1,1.04758409]
[1644961774631,4.26475968,3099.2,3099.1,0.00368237]
[1644961775285,4.26475968,3099.2,3099.1,1.04758084]
[1644961775491,4.26475968,3099.2,3099.1,1.04758109]
[1644961775688,4.26475968,3099.2,3099.1,0.00368237]
[1644961775886,3.45800968,3099.2,3099.1,1.04757741]
[1644961776085,3.45800968,3099.2,3099.1,0.00368237]
[1644961776488,0.32278746,3099.2,3099.1,1.04770195]
[1644961776687,0.32278746,3099.2,3099.1,1.04770212]
[1644961776885,0.32278746,3099.2,3099.1,0.00368237]
[1644961777085,0.32278746,3099.2,3099.1,1.04770357]
[1644961777286,0.32278746,3099.2,3099.1,1.04766085]
[1644961777586,0.32278746,3099.2,3099.1,0.00368237]
[1644961778087,0.32278746,3099.2,3099.1,1.04766426]
[1644961778288,3.4799512,3099.2,3099.1,0.00368237]
[1644961778531,0.32278746,3099.2,3099.1,1.04770699]
[1644961778732,0.32278746,3099.2,3099.1,0.00368237]
[1644961778936,3.45575206,3099.2,3099.1,1.04774484]
[1644961779138,0.32278746,3099.2,3099.1,0.00368237]
[1644961779329,0.32278746,3099.2,3099.1,1.04774322]
[1644961779530,0.32278746,3099.2,3099.1,0.00368237]
[1644961779734,0.32278746,3099.2,3099.1,1.0477431]
[1644961779936,0.32278746,3099.2,3099.1,1.04774291]
[1644961780135,0.32278746,3099.2,3099.1,1.04792202]
[1644961780331,0.32278746,3099.2,3099.1,0.00368237]
[1644961780536,0.32278746,3099.2,3099.1,1.0478967]
[1644961780735,0.32122643,3099.2,3099.1,1.5098967]
[1644961780939,0.32122643,3099.2,3099.1,2.3164867]
[1644961781143,0.25218198,3099.3,3099.1,4.1229367]
[1644961781332,0.25218198,3099.3,3099.2,0.3]
[1644961781532,0.25218198,3099.3,3099.2,0.762]
[1644961782133,0.25218198,3099.3,3099.2,1.56843]
[1644961782391,0.25218198,3099.3,3099.2,2.56843]
[1644961792294,0.25218198,3099.3,3099.2,2.3749532]
[1644961793295,0.25218198,3099.3,3099.2,1.5685232]
[1644961793538,0.25218198,3099.3,3099.2,0.762]
[1644961795735,0.25218198,3099.3,3099.2,0.462]
[1644961800785,0.57534151,3099.3,3099.2,1.8063401]
[1644961801234,0.25218198,3099.3,3099.2,1.8063401]
[1644961801630,0.57538307,3099.3,3099.2,1.8063401]
[1644961801830,0.5753807,3099.3,3099.2,1.8063401]
[1644961802334,0.57537206,3099.3,3099.2,1.8063401]
[1644961802530,0.25218198,3099.3,3099.2,1.8063401]
[1644961802731,0.25218198,3099.3,3099.2,1.5063401]
[1644961802931,0.25218198,3099.3,3099.2,2.3128801]
[1644961803132,0.57536941,3099.3,3099.2,2.6128801]
[1644961803330,0.57536941,3099.3,3099.2,3.6128801]
[1644961803331,0.25125477,3099.3,3099.2,3.6128801]
[1644961803531,0.25125477,3099.3,3099.2,4.4194422]
[1644961805081,0.25125477,3099.3,3099.2,3.6129022]
[1644961805881,0.25125477,3099.3,3099.2,2.8063401]
[1644961806080,0.56905293,3099.3,3099.2,3.6128901]
[1644961806480,0.25125477,3099.3,3099.2,2.6128901]
[1644961806683,0.25125477,3099.3,3099.2,3.6128901]
[1644961807081,0.25125477,3099.3,3099.2,4.4194547]
[1644961809134,0.56568092,3099.3,3099.2,4.4194547]
[1644961810938,0.56568092,3099.3,3099.2,3.6129047]
[1644961812383,0.56568092,3099.3,3099.2,4.4194547]
[1644961813981,0.56560554,3099.3,3099.2,3.62135453]
[1644961815293,0.56560554,3099.3,3099.2,4.42790453]
[1644961815690,0.25125477,3099.3,3099.2,3.3751146]
[1644961815885,0.25125477,3099.3,3099.2,4.42795317]
[1644961816533,0.56561769,3099.3,3099.2,4.42795317]
[1644961816832,0.56561769,3099.3,3099.2,7.63696717]
[1644961817032,0.56561769,3099.3,3099.2,4.42795317]
[1644961820994,0.56561769,3099.3,3099.2,4.43163554]
[1644961821392,0.56561769,3099.3,3099.2,7.93163554]
[1644961822694,0.25125477,3099.3,3099.2,7.93163554]
[1644961823735,0.56635715,3099.3,3099.2,8.54772121]
[1644961824332,0.56635715,3099.3,3099.2,11.82114226]
[1644961824931,0.25125477,3099.3,3099.2,11.82114226]
[1644961825639,0.25125477,3099.3,3099.2,11.82029139]
[1644961825836,0.57225475,3099.3,3099.2,11.82029139]